Cogmind - Beta 14 @@@ ROGUE MODE // 2024.08.26 @ 19:52:40 Player: MadBadger Result: Destroyed by Autobeam Turret with Autobeam Performance ------------- Evolutions (0) 0 Regions Visited (2) 400 Robots Destroyed (14) 70 Value Destroyed (301) 301 Prototype IDs (0) 0 Alien Tech Used (0) 0 Bonus (0) 0 TOTAL SCORE: 771 Bonus ------- None Cogmind --------- Core Integrity 0/250 Matter 300/300 Energy 99/100 System Corruption 1% Temperature Cool (6) Movement Core (400) Ox7 Location -10/Subcaves Parts ------- > --- POWER (1) -------- (None) > --- PROPULSION (2) --- (None) > --- UTILITY (2) ------ Large Storage Unit Structural Scanner > --- WEAPON (2) ------- Small Laser > --- INVENTORY (15) --- Signal Interpreter Light Armor Plating Mining Laser Peak State ------------ > --- POWER ------------ Ion Engine > --- PROPULSION ------- Light Treads Light Treads > --- UTILITY ---------- Large Storage Unit Structural Scanner > --- WEAPON ----------- Assault Rifle Mining Laser > --- INVENTORY -------- Signal Interpreter Light Armor Plating Small Laser Light Assault Rifle [Rating: 7] Favorites ----------- Power Ion Engine Engine Ion Engine Propulsion Light Treads Treads Light Treads Utility Structural Scanner Device Structural Scanner Storage Small Storage Unit Protection Light Armor Plating Weapon Assault Rifle Energy Gun Small Laser Ballistic Gun Assault Rifle Special Weapon Mining Laser Build | -11 -10 -10 ------- Run | Yrd Mat Sub Slots Evolved . | . . . Power . | . . . Propulsion . | . . . Utility . | . . . Weapon . | . . . Parts Attached 14 | 7 5 2 Power 2 | 1 1 . Engine 2 | 1 1 . Core . | . . . Reactor . | . . . Propulsion 2 | 2 . . Treads 2 | 2 . . Leg . | . . . Wheel . | . . . Hover . | . . . Flight . | . . . Utility 4 | 1 3 . Device 1 | . 1 . Storage 2 | 1 1 . Processor . | . . . Hackware . | . . . Protection 1 | . 1 . Artifact . | . . . Weapon 6 | 3 1 2 Energy Gun 2 | 1 . 1 Energy Cannon . | . . . Ballistic Gun 3 | 2 . 1 Ballistic Cannon . | . . . Launcher . | . . . Special Weapon 1 | . 1 . Impact Weapon . | . . . Slashing Weapon . | . . . Piercing Weapon . | . . . Special Melee Weapon . | . . . Unidentified Prototypes . | . . . Parts Lost 7 | . 2 5 Power 2 | . 1 1 Propulsion 2 | . . 2 Utility . | . . . Weapon 3 | . 1 2 Highest Loss Streak 5 | . 1 5 To Critical Strikes . | . . . Average Slot Usage (%) 79 | . 81 68 Engine 8 | . 8 8 Treads 25 | . 28 11 Device 10 | . 10 14 Storage 14 | . 14 14 Ballistic Gun 18 | . 18 12 Peak Build Rating 7 | 6 7 7 Average Rating 5 | 5 5 4 On Entrance 4 | . 6 7 Naked Turns . | . . . Heaviest Build 29 | 14 29 29 Greatest Support 40 | 40 40 40 Greatest Overweight (x) 9 | . . 9 Average Overweight (x) . | . . 2 Largest Inventory Capacity 15 | 8 15 15 Average Capacity 11 | 7 11 15 Most Carried 7 | 2 7 4 Average Carried 4 | 1 4 3 Final Capacity 15 | 8 15 15 Final Carried 4 | 2 4 3 Class Distribution -------------------- 100% | Mutant Dominant Class ---------------- Mutant | -10/Materials Mutant | -10/Subcaves Resources | -11 -10 -10 ----------- Run | Yrd Mat Sub Matter Collected 550 | 225 271 54 Remotely . | . . . Salvage Created 360 | . 360 . Parts 32 | . 32 . Haulers Intercepted . | . . . Recyclers Shooed . | . . . Parts Field Recycled . | . . . Retrieved Matter . | . . . Parts Self-Destructed 9 | . . 9 Prevented . | . . . Kills | -11 -10 -10 ------- Run | Yrd Mat Sub Combat Hostiles Destroyed 11 | . 11 . Guns 11 | . 11 . Classes Destroyed 3 | . 3 . Watcher 3 | . 3 . Swarmer 6 | . 6 . Grunt 5 | . 5 . Best Kill Streak 7 | . 7 . Combat Bots Only 4 | . 4 . Max Kills in Single Turn 2 | . 2 . Gunslinging 1 | . 1 . Exploded . | . . . Melee . | . . . Uniques/NPCs Destroyed . | . . . Combat | -11 -10 -10 -------- Run | Yrd Mat Sub Hostile Shots Fired 161 | . 74 87 Missed 51 | . 22 29 Damage Taken 1013 | . 497 516 Core 254 | . 55 199 Absorbed by Shields . | . . . Core Remaining (%) 100 | 100 . . Volleys Fired 43 | 2 38 3 Largest 2 | 2 2 2 Hottest 120 | 60 120 40 Shots Fired 81 | 4 73 4 Gun 80 | 4 72 4 Cannon . | . . . Launcher . | . . . Special 1 | . 1 . Kinetic 76 | 2 72 2 Thermal 5 | 2 1 2 Explosive . | . . . Electromagnetic . | . . . Robot Hit Streak 7 | 2 7 1 Robot Miss Streak 4 | 1 4 2 Penetration Max . | . . . Secondary Targets 3 | . 3 . Max Gunslinging Chain 1 | . 1 . Shots Hit Robots 49 | 3 44 2 Core Hits 21 | . 21 . Critical Kills 2 | . 2 . Critical Parts Destroyed . | . . . Critical Strikes 2 | . 2 . Destroy 2 | . 2 . Melee Attacks . | . . . Impact . | . . . Slashing . | . . . Piercing . | . . . Sneak Attacks . | . . . Combat Hostiles . | . . . Follow-up Attacks . | . . . Damage Inflicted 644 | 35 586 23 Guns 642 | 35 584 23 Cannons . | . . . Explosions . | . . . Melee . | . . . Ramming 2 | . 2 . Kinetic 622 | 25 584 13 Thermal 20 | 10 . 10 Explosive . | . . . Electromagnetic . | . . . Impact . | . . . Slashing . | . . . Piercing . | . . . Highest Corruption 1 | . 1 1 Average Corruption 1 | . 1 1 Corruption Purged . | . . . Corruption Blocked . | . . . Effects 7 | . 6 1 Message Errors 3 | . 3 . Matter Fused 3 | . 2 1 Misfires 1 | . 1 . Overload Shots . | . . . Overflow Damage . | . . . Projectiles . | . . . Explosions . | . . . Melee . | . . . Knockbacks . | . . . Impact . | . . . Kinetic . | . . . Secondary . | . . . Self-Inflicted Damage . | . . . Shots . | . . . Rammed 1 | . 1 . Targets Rammed 1 | . 1 . Kicked . | . . . Crushed . | . . . Highest Temperature 30 | . 30 . Average Temperature 13 | . 13 . Received Heat Transfer 207 | . 141 66 Siege Activations . | . . . Robots Corrupted . | . . . Combat Hostiles . | . . . Parts Fried . | . . . Impact Corruptions . | . . . Robots Melted . | . . . Combat Hostiles . | . . . Parts Melted . | . . . Heat Transferred 50 | 25 . 25 Parts Sabotaged . | . . . Parts Stolen . | . . . Parts Stripped . | . . . Power Chain Reactions . | . . . Alert | -11 -10 -10 ------- Run | Yrd Mat Sub Peak Influence 287 | . 287 . Initial . | . . . Average 56 | . 60 . Maximum Alert Level 1 | . 1 . Low Security (%) 92 | 100 92 . Level 1 7 | . 7 . Level 2 . | . . . Level 3 . | . . . Level 4 . | . . . Level 5 . | . . . High Security . | . . . Max Security . | . . . Squads Dispatched 3 | . 3 . Investigation 2 | . 2 . Extermination . | . . . Reinforcement 1 | . 1 . Assault . | . . . Garrison . | . . . Intercept . | . . . Searches Triggered . | . . . Construction Impeded . | . . . Haulers Reinforced . | . . . Active Scanning Responses . | . . . Cargo Convoy Interrupts . | . . . Stealth | -11 -10 -10 --------- Run | Yrd Mat Sub Distress Signals 2 | . 2 . Communications Jammed . | . . . Distress Signals . | . . . Times Spotted 24 | . 16 8 Peak Tracking Total 6 | . 5 6 Tactical Retreats 3 | . 1 2 Traps | -11 -10 -10 ------- Run | Yrd Mat Sub Traps Triggered 3 | . 3 . Indirectly . | . . . Trap Hack Attempts . | . . . Triggered . | . . . Disarmed . | . . . Reprogrammed . | . . . Reused . | . . . Traps Extracted . | . . . Installed . | . . . Triggered . | . . . Machines | -11 -10 -10 ---------- Run | Yrd Mat Sub Machines Disabled 1 | . 1 . Max in Single Turn 1 | . 1 . Machines Repaired . | . . . Machines Dismantled . | . . . Machines Sabotaged . | . . . Overloaded Fab Kills . | . . . Hacking | -11 -10 -10 --------- Run | Yrd Mat Sub Machines Accessed . | . . . Terminals . | . . . Fabricators . | . . . Repair Stations . | . . . Recycling Units . | . . . Scanalyzers . | . . . Garrison Access . | . . . Total Hacks . | . . . Successful . | . . . Failed . | . . . Catastrophic . | . . . Database Lockouts . | . . . Manual . | . . . Terminals . | . . . Fabricators . | . . . Repair Stations . | . . . Recycling Units . | . . . Scanalyzers . | . . . Garrison Access . | . . . Terminal Hacks . | . . . Fabricator Hacks . | . . . Repair Station Hacks . | . . . Recycling Unit Hacks . | . . . Scanalyzer . | . . . Garrison Access Hacks . | . . . Unauthorized Hacks . | . . . Terminals . | . . . Fabricators . | . . . Repair Stations . | . . . Recycling Units . | . . . Scanalyzers . | . . . Garrison Access . | . . . Data Cores Recovered . | . . . Used . | . . . Hacking Detections . | . . . Full Trace Events . | . . . Feedback Events . | . . . Feedback Blocked . | . . . Robot Schematics Acquired . | . . . Robots Built . | . . . Authchips . | . . . Time . | . . . Total Robot Build Rating . | . . . Part Schematics Acquired . | . . . Parts Built . | . . . Authchips . | . . . Time . | . . . Total Part Build Rating . | . . . Parts Repaired . | . . . Time . | . . . Parts Recycled . | . . . Recycled Matter . | . . . Retrieved Matter . | . . . Retrieved Components . | . . . Parts Scanalyzed . | . . . Part Schematics Acquired . | . . . Parts Damaged . | . . . Bothacking | -11 -10 -10 ------------ Run | Yrd Mat Sub Used RIF Installer . | . . . Robots Hacked . | . . . Non-combat . | . . . Combat . | . . . Robot Hacks Applied . | . . . Relay Couplers Released . | . . . Fabnet Peak Effective % . | . . . Robots Rewired . | . . . Allies Hacked . | . . . Hacks Repelled . | . . . Allies | -11 -10 -10 -------- Run | Yrd Mat Sub Total Allies . | . . . Largest Group . | . . . Highest-Rated Group . | . . . Highest-Rated Ally . | . . . Total Orders . | . . . Ally Attacks . | . . . Total Damage . | . . . Kills . | . . . Allies Corrupted . | . . . Allies Melted . | . . . Intel | -11 -10 -10 ------- Run | Yrd Mat Sub Robot Analysis Total . | . . . Derelict Logs Recovered . | . . . Drone Launches . | . . . Drone Recoveries . | . . . Exploration | -11 -10 -10 ------------- Run | Yrd Mat Sub Turns Passed 1909 | 114 1582 213 Spaces Moved 1040 | 61 897 82 Core 31 | 3 . 28 Treads 1009 | 58 897 54 Legs . | . . . Wheels . | . . . Hover . | . . . Flight . | . . . Fastest Speed 50 | 50 160 160 Average Speed 166 | 154 160 252 Slowest Speed 500 | 160 160 500 Overloaded Moves . | . . . Propulsion Burnouts . | . . . Robots Hopped . | . . . Cave-ins Triggered . | . . . Exploration Rate (%) 37 | 5 97 10 Regions Visited 2 Branch Regions 1 Pre-discovered Areas . | . . . Known Exits Taken . | . . . Unknown Exits Taken 2 | 1 1 . Scrap Searched . | . . . Spaces Dug . | . . . Terrain Destroyed . | . . . Melee . | . . . Projectile . | . . . AOE . | . . . Terrain Rammed . | . . . Walls Destroyed . | . . . Machines Disabled . | . . . Actions | -11 -10 -10 --------- Run | Yrd Mat Sub Total 1130 | 74 969 87 Wait 27 | 3 24 . Move 1038 | 60 896 82 Hop . | . . . Pick Up 4 | 1 3 . Fast Attach 9 | 7 2 . Attach 3 | . 2 1 Detach 2 | 1 1 . Swap 2 | . 1 1 Drop 1 | . 1 . Fire 43 | 2 38 3 Melee . | . . . Ram . | . . . Kick . | . . . Crush 1 | . 1 . Escape Stasis . | . . . Rewire . | . . . Trap . | . . . Miscellaneous . | . . . Route ------- -11/Scrapyard -10/Materials (discovered 5 exits: [*Mat x3] / [*Min] / [*Sub]) -10/Subcaves (discovered 1 exit: [*Rec]) History --------- Turn | Location | Event 24 | -11/Scrapyard | Discovered new exit (range 15) 115 | -11/Scrapyard | Entered Materials 233 | -10/Materials | Discovered new exit (range 13) 306 | -10/Materials | Build established: Mutant 701 | -10/Materials | Discovered new exit (range 15) 975 | -10/Materials | Discovered new exit (range 14) 1117 | -10/Materials | Discovered new exit (range 3) 1670 | -10/Materials | Discovered new exit (range 9) 1697 | -10/Materials | Entered Subcaves 1776 | -10/Subcaves | Discovered new exit (range 14) 1795 | -10/Subcaves | Core integrity fell below 50% 1830 | -10/Subcaves | Core integrity fell below 20% 1863 | -10/Subcaves | Lost 5 parts (1p2n2w) 1910 | -10/Subcaves | Destroyed by Autobeam Turret with Autobeam Last Messages --------------- 01701_ Acquired 8 matter. 01776_ EXIT=FOUND 01778_ S-10 Pest springs to life. 01779_ Lgt. Treads destroyed. 01781_ S-10 Pest destroyed. 01786_ Flight Unit fries itself beyond repair. 01790_ Lgt. Treads destroyed. 01802_ Assault Rifle destroyed. 01806_ Lgt. Assault Rifle destroyed. 01815_ S-10 Pest destroyed. 01832_ Ion Engine destroyed. 01833_ Lgt. Ion Engine fries itself beyond repair. 01833_ Flight Unit fries itself beyond repair. 01839_ Subatomizers dissect the Sub. Laser. 01850_ SX-8WU(R) destroyed. 01864_ Subatomizers dissect the Sub. Laser. 01871_ System corrupted: Matter fused (-9). 01875_ Subatomizers dissect the Sub. Monowheel. 01890_ Acquired 46 matter. 01899_ Subatomizers dissect the Sub. Monowheel. Map ----- +----------------------------------------------------+ | ???????????????????????????????????## ### ### | | ???????????????????????????????????## ### | | ?????????????????????????####??????## #### | | ????????????????????????######?????### #### | | ?????????????????? ###### ###?###### | | ???????????????? ##### ######### | | ????????????????# ### #### ## ## | | ????????????????## ## ##### | | ????????????????## ???## #### # | | ?????????????????## #??## ###### ## | | ?????????????????## ##??## ###### ## | | ?????????????????### ###?#### ###### ## | | ?????????????????#### ######## ####### ## | | ???????????????? ### ##### ##### # | | ???????????????? ## ### ##### | | ????????????????## ###### | | ????????????????### ##### | | ??????## ??????##### #### ###### | | ?????### ? ####### ##### ##### # | | ?????## #### % ##### ## # # | | ?????# % ####### | | ???????? ### =&! %####??#### | | ???????????? #### !%&&& ##" ??""### | | ??????????????### *[&%= ## ? "### ## | | ???????????????## %& ## %"### ### ## | | ???????????????### @ t""### ##### ### # | | ???????????????### <## ##### #### | | ????????????????### t""#### ###?# ?#### | | ????????????????### ## %"########?## ????? | | ???????????????##% ## "##???????## ????? | | ???????????????## #" " "##???????## #???? | | ???????????????## ## ##########??????? ##???? | | ???????????????#### ## ######### ???????####???? | | ???????????????##### ## #???????????????###????? | | ?????????????????### ##??????????????????????? | | ?????????????????????? #??????????????????????? | | ????????????????????## ???????????????????????? | | ????????????????????### ???????????????????????? | | ????????????????????### ???????????????????????? | | ?????????????????????# ????????????????????????? | | ?????????????????????????????????????????????????? | | ?????????????????????????????????????????????????? | | ?????????????????????????????????????????????????? | | ?????????????????????????????????????????????????? | | ?????????????????????????????????????????????????? | | ?????????????????????????????????????????????????? | | ?????????????????????????????????????????????????? | | ?????????????????????????????????????????????????? | | ?????????????????????????????????????????????????? | | ?????????????????????????????????????????????????? | +----------------------------------------------------+ Best States ------------- Heat Dissipation 25 Energy Generation 10 Energy Capacity 250 Matter Stores 300 Matter Capacity 300 Sight Range 16 Terrain Scan Density 10 Armor Coverage 150 Evasion (%) 40 Recoil Reduction 2 Item Schematics ----------------- None Robot Schematics ------------------ None Fabricated ------------ Nothing Alien Tech Used ----------------- None Achievements -------------- None Challenges ------------ None Game ------ Seed RestorationAssembledMachine Manual? 0 Play Time 00:10:25 Cumulative 10.6 hours Start 2024.08.26 @ 19:43:29 End 2024.08.26 @ 19:52:40 Sessions 1 Manual Loads 0 Difficulty Rogue Special Mode None Game No. 17 Rogue 17 Adventurer 0 Explorer 0 Win Type - Total 0 Types 0/0/0/0/0/0/0/0/0 Lore% 2 Gallery% 10 Achievement% 12 Wizard Run 0 Options --------- Layout 0 ASCII 0 Keyboard 1 Movement Numpad Keybinds 0 Fullscreen 1 Font 24/Smallcaps Map View 76x50 Zoom Use 0% Tactical HUD 1 Map Filters NONE Filters NONE Steam 1 RUN: 6c5d7944-66c7-496c-8f7b-b1264edd5391